{"text_format":"1","workbook":"xlsx","n_sheets":2,"sheets":["様式第1-7号","支出費目"],"not_rendered":{"charts":0,"images":0,"macros":1,"external_links":0,"defined_names":3,"comments":0,"pivot_tables":0},"unopened":[],"bounds":{"document_bytes":16777216,"sheet_cells":100000,"rows_first":2000,"rows_last":500,"rows_between":2000,"halvings":0,"cell_chars":16384,"cell_head_chars":4096},"cells_cut":0,"cells_raw":0,"read":"whole","date_system":"1900"}

{"sheet":"様式第1-7号","index":0,"n_rows":245,"n_cols":15,"rows_kept":245,"cut":false,"hidden":false,"merged":[[241,3,241,4],[9,0,10,0],[9,3,10,3],[9,5,9,8],[9,11,10,11],[9,4,10,4],[235,0,235,2],[9,1,10,1],[9,2,10,2],[241,5,241,8],[237,5,237,12],[9,12,10,12],[7,10,7,12],[238,3,238,4],[239,3,239,4],[240,3,240,4],[9,10,10,10],[9,9,10,9]]}
[]
[]
[]
[]
["（様式第１－７号）"]
["令和",null,"年度　多面的機能支払交付金　金銭出納簿"]
[null,null,"【 農地維持支払及び資源向上支払（施設の長寿命化を除く）】"]
[null,null,null,null,null,null,null,null,null,"組織名"]
[]
["日付","分類","内　　容","収　入\n（円）","支　出\n（円）","支出内訳（円）",null,null,null,"残　高\n（円）","領収書\n番　号","活動実施日","備　考"]
[null,null,null,null,null,"1.日当","2.購入･ﾘｰｽ費","3.外注費","4.その他"]
[null,null,null,null,null,{"$f":"IF(AND(ISNUMBER($E12),$B12=1),$E12,\"\")","v":""},{"$f":"IF(AND(ISNUMBER($E12),$B12=2),$E12,\"\")","v":""},{"$f":"IF(AND(ISNUMBER($E12),$B12=3),$E12,\"\")","v":""},{"$f":"IF(AND(ISNUMBER($E12),$B12=4),$E12,\"\")","v":""},{"$f":"IF(OR(ISNUMBER(D12),ISNUMBER(E12)),J11+D12-E12,\"\")","v":""},null,null,null,null,{"$f":"IF(AND(ISBLANK(A12),ISBLANK(C12),ISBLANK(D12),ISBLANK(E12),ISBLANK(K12),ISBLANK(L12),ISBLANK(M12)),1,\"\")","v":1}]
[null,null,null,null,null,"","","","","",null,null,null,null,{"$f":"IF(AND(ISBLANK(A13),ISBLANK(C13),ISBLANK(D13),ISBLANK(E13),ISBLANK(K13),ISBLANK(L13),ISBLANK(M13)),1,\"\")","v":1}]
[null,null,null,null,null,"","","","","",null,null,null,null,1]
[null,null,null,null,null,"","","","","",null,null,null,null,1]
[null,null,null,null,null,"","","","","",null,null,null,null,1]
[null,null,null,null,null,"","","","","",null,null,null,null,1]
[null,null,null,null,null,"","","","","",null,null,null,null,1]
[null,null,null,null,null,"","","","","",null,null,null,null,1]
[null,null,null,null,null,"","","","","",null,null,null,null,1]
[null,null,null,null,null,"","","","","",null,null,null,null,1]
[null,null,null,null,null,"","","","","",null,null,null,null,1]
[null,null,null,null,null,"","","","","",null,null,null,null,1]
[null,null,null,null,null,"","","","","",null,null,null,null,1]
[null,null,null,null,null,"","","","","",null,null,null,null,1]
[null,null,null,null,null,"","","","","",null,null,null,null,1]
[null,null,null,null,null,"","","","","",null,null,null,null,1]
[null,null,null,null,null,"","","","","",null,null,null,null,1]
[null,null,null,null,null,"","","","","",null,null,null,null,1]
[null,null,null,null,null,"","","","","",null,null,null,null,1]
[null,null,null,null,null,"","","","","",null,null,null,null,1]
[null,null,null,null,null,"","","","","",null,null,null,null,1]
[null,null,null,null,null,"","","","","",null,null,null,null,1]
[null,null,null,null,null,"","","","","",null,null,null,null,1]
[null,null,null,null,null,"","","","","",null,null,null,null,1]
[null,null,null,null,null,"","","","","",null,null,null,null,1]
[null,null,null,null,null,"","","","","",null,null,null,null,1]
[null,null,null,null,null,"","","","","",null,null,null,null,1]
[null,null,null,null,null,"","","","","",null,null,null,null,1]
[null,null,null,null,null,"","","","","",null,null,null,null,1]
[null,null,null,null,null,"","","","","",null,null,null,null,1]
[null,null,null,null,null,"","","","","",null,null,null,null,1]
[null,null,null,null,null,"","","","","",null,null,null,null,1]
[null,null,null,null,null,"","","","","",null,null,null,null,1]
[null,null,null,null,null,"","","","","",null,null,null,null,1]
[null,null,null,null,null,"","","","","",null,null,null,null,1]
[null,null,null,null,null,"","","","","",null,null,null,null,1]
[null,null,null,null,null,"","","","","",null,null,null,null,1]
[null,null,null,null,null,"","","","","",null,null,null,null,1]
[null,null,null,null,null,"","","","","",null,null,null,null,1]
[null,null,null,null,null,"","","","","",null,null,null,null,1]
[null,null,null,null,null,"","","","","",null,null,null,null,1]
[null,null,null,null,null,"","","","","",null,null,null,null,1]
[null,null,null,null,null,"","","","","",null,null,null,null,1]
[null,null,null,null,null,"","","","","",null,null,null,null,1]
[null,null,null,null,null,"","","","","",null,null,null,null,1]
[null,null,null,null,null,"","","","","",null,null,null,null,1]
[null,null,null,null,null,"","","","","",null,null,null,null,1]
[null,null,null,null,null,"","","","","",null,null,null,null,1]
[null,null,null,null,null,"","","","","",null,null,null,null,1]
[null,null,null,null,null,"","","","","",null,null,null,null,1]
[null,null,null,null,null,"","","","","",null,null,null,null,1]
[null,null,null,null,null,"","","","","",null,null,null,null,1]
[null,null,null,null,null,"","","","","",null,null,null,null,1]
[null,null,null,null,null,"","","","","",null,null,null,null,1]
[null,null,null,null,null,"","","","","",null,null,null,null,1]
[null,null,null,null,null,"","","","","",null,null,null,null,1]
[null,null,null,null,null,"","","","","",null,null,null,null,1]
[null,null,null,null,null,"","","","","",null,null,null,null,1]
[null,null,null,null,null,"","","","","",null,null,null,null,1]
[null,null,null,null,null,"","","","","",null,null,null,null,1]
[null,null,null,null,null,"","","","","",null,null,null,null,1]
[null,null,null,null,null,"","","","","",null,null,null,null,1]
[null,null,null,null,null,"","","","","",null,null,null,null,1]
[null,null,null,null,null,"","","","","",null,null,null,null,1]
[null,null,null,null,null,{"$f":"IF(AND(ISNUMBER($E76),$B76=1),$E76,\"\")","v":""},{"$f":"IF(AND(ISNUMBER($E76),$B76=2),$E76,\"\")","v":""},{"$f":"IF(AND(ISNUMBER($E76),$B76=3),$E76,\"\")","v":""},{"$f":"IF(AND(ISNUMBER($E76),$B76=4),$E76,\"\")","v":""},{"$f":"IF(OR(ISNUMBER(D76),ISNUMBER(E76)),J75+D76-E76,\"\")","v":""},null,null,null,null,1]
[null,null,null,null,null,"","","","","",null,null,null,null,{"$f":"IF(AND(ISBLANK(A77),ISBLANK(C77),ISBLANK(D77),ISBLANK(E77),ISBLANK(K77),ISBLANK(L77),ISBLANK(M77)),1,\"\")","v":1}]
[null,null,null,null,null,"","","","","",null,null,null,null,1]
[null,null,null,null,null,"","","","","",null,null,null,null,1]
[null,null,null,null,null,"","","","","",null,null,null,null,1]
[null,null,null,null,null,"","","","","",null,null,null,null,1]
[null,null,null,null,null,"","","","","",null,null,null,null,1]
[null,null,null,null,null,"","","","","",null,null,null,null,1]
[null,null,null,null,null,"","","","","",null,null,null,null,1]
[null,null,null,null,null,"","","","","",null,null,null,null,1]
[null,null,null,null,null,"","","","","",null,null,null,null,1]
[null,null,null,null,null,"","","","","",null,null,null,null,1]
[null,null,null,null,null,"","","","","",null,null,null,null,1]
[null,null,null,null,null,"","","","","",null,null,null,null,1]
[null,null,null,null,null,"","","","","",null,null,null,null,1]
[null,null,null,null,null,"","","","","",null,null,null,null,1]
[null,null,null,null,null,"","","","","",null,null,null,null,1]
[null,null,null,null,null,"","","","","",null,null,null,null,1]
[null,null,null,null,null,"","","","","",null,null,null,null,1]
[null,null,null,null,null,"","","","","",null,null,null,null,1]
[null,null,null,null,null,"","","","","",null,null,null,null,1]
[null,null,null,null,null,"","","","","",null,null,null,null,1]
[null,null,null,null,null,"","","","","",null,null,null,null,1]
[null,null,null,null,null,"","","","","",null,null,null,null,1]
[null,null,null,null,null,"","","","","",null,null,null,null,1]
[null,null,null,null,null,"","","","","",null,null,null,null,1]
[null,null,null,null,null,"","","","","",null,null,null,null,1]
[null,null,null,null,null,"","","","","",null,null,null,null,1]
[null,null,null,null,null,"","","","","",null,null,null,null,1]
[null,null,null,null,null,"","","","","",null,null,null,null,1]
[null,null,null,null,null,"","","","","",null,null,null,null,1]
[null,null,null,null,null,"","","","","",null,null,null,null,1]
[null,null,null,null,null,"","","","","",null,null,null,null,1]
[null,null,null,null,null,"","","","","",null,null,null,null,1]
[null,null,null,null,null,"","","","","",null,null,null,null,1]
[null,null,null,null,null,"","","","","",null,null,null,null,1]
[null,null,null,null,null,"","","","","",null,null,null,null,1]
[null,null,null,null,null,"","","","","",null,null,null,null,1]
[null,null,null,null,null,"","","","","",null,null,null,null,1]
[null,null,null,null,null,"","","","","",null,null,null,null,1]
[null,null,null,null,null,"","","","","",null,null,null,null,1]
[null,null,null,null,null,"","","","","",null,null,null,null,1]
[null,null,null,null,null,"","","","","",null,null,null,null,1]
[null,null,null,null,null,"","","","","",null,null,null,null,1]
[null,null,null,null,null,"","","","","",null,null,null,null,1]
[null,null,null,null,null,"","","","","",null,null,null,null,1]
[null,null,null,null,null,"","","","","",null,null,null,null,1]
[null,null,null,null,null,"","","","","",null,null,null,null,1]
[null,null,null,null,null,"","","","","",null,null,null,null,1]
[null,null,null,null,null,"","","","","",null,null,null,null,1]
[null,null,null,null,null,"","","","","",null,null,null,null,1]
[null,null,null,null,null,"","","","","",null,null,null,null,1]
[null,null,null,null,null,"","","","","",null,null,null,null,1]
[null,null,null,null,null,"","","","","",null,null,null,null,1]
[null,null,null,null,null,"","","","","",null,null,null,null,1]
[null,null,null,null,null,"","","","","",null,null,null,null,1]
[null,null,null,null,null,"","","","","",null,null,null,null,1]
[null,null,null,null,null,"","","","","",null,null,null,null,1]
[null,null,null,null,null,"","","","","",null,null,null,null,1]
[null,null,null,null,null,"","","","","",null,null,null,null,1]
[null,null,null,null,null,"","","","","",null,null,null,null,1]
[null,null,null,null,null,"","","","","",null,null,null,null,1]
[null,null,null,null,null,"","","","","",null,null,null,null,1]
[null,null,null,null,null,"","","","","",null,null,null,null,1]
[null,null,null,null,null,{"$f":"IF(AND(ISNUMBER($E140),$B140=1),$E140,\"\")","v":""},{"$f":"IF(AND(ISNUMBER($E140),$B140=2),$E140,\"\")","v":""},{"$f":"IF(AND(ISNUMBER($E140),$B140=3),$E140,\"\")","v":""},{"$f":"IF(AND(ISNUMBER($E140),$B140=4),$E140,\"\")","v":""},{"$f":"IF(OR(ISNUMBER(D140),ISNUMBER(E140)),J139+D140-E140,\"\")","v":""},null,null,null,null,1]
[null,null,null,null,null,"","","","","",null,null,null,null,{"$f":"IF(AND(ISBLANK(A141),ISBLANK(C141),ISBLANK(D141),ISBLANK(E141),ISBLANK(K141),ISBLANK(L141),ISBLANK(M141)),1,\"\")","v":1}]
[null,null,null,null,null,"","","","","",null,null,null,null,1]
[null,null,null,null,null,"","","","","",null,null,null,null,1]
[null,null,null,null,null,"","","","","",null,null,null,null,1]
[null,null,null,null,null,"","","","","",null,null,null,null,1]
[null,null,null,null,null,"","","","","",null,null,null,null,1]
[null,null,null,null,null,"","","","","",null,null,null,null,1]
[null,null,null,null,null,"","","","","",null,null,null,null,1]
[null,null,null,null,null,"","","","","",null,null,null,null,1]
[null,null,null,null,null,"","","","","",null,null,null,null,1]
[null,null,null,null,null,"","","","","",null,null,null,null,1]
[null,null,null,null,null,"","","","","",null,null,null,null,1]
[null,null,null,null,null,"","","","","",null,null,null,null,1]
[null,null,null,null,null,"","","","","",null,null,null,null,1]
[null,null,null,null,null,"","","","","",null,null,null,null,1]
[null,null,null,null,null,"","","","","",null,null,null,null,1]
[null,null,null,null,null,"","","","","",null,null,null,null,1]
[null,null,null,null,null,"","","","","",null,null,null,null,1]
[null,null,null,null,null,"","","","","",null,null,null,null,1]
[null,null,null,null,null,"","","","","",null,null,null,null,1]
[null,null,null,null,null,"","","","","",null,null,null,null,1]
[null,null,null,null,null,"","","","","",null,null,null,null,1]
[null,null,null,null,null,"","","","","",null,null,null,null,1]
[null,null,null,null,null,"","","","","",null,null,null,null,1]
[null,null,null,null,null,"","","","","",null,null,null,null,1]
[null,null,null,null,null,"","","","","",null,null,null,null,1]
[null,null,null,null,null,"","","","","",null,null,null,null,1]
[null,null,null,null,null,"","","","","",null,null,null,null,1]
[null,null,null,null,null,"","","","","",null,null,null,null,1]
[null,null,null,null,null,"","","","","",null,null,null,null,1]
[null,null,null,null,null,"","","","","",null,null,null,null,1]
[null,null,null,null,null,"","","","","",null,null,null,null,1]
[null,null,null,null,null,"","","","","",null,null,null,null,1]
[null,null,null,null,null,"","","","","",null,null,null,null,1]
[null,null,null,null,null,"","","","","",null,null,null,null,1]
[null,null,null,null,null,"","","","","",null,null,null,null,1]
[null,null,null,null,null,"","","","","",null,null,null,null,1]
[null,null,null,null,null,"","","","","",null,null,null,null,1]
[null,null,null,null,null,"","","","","",null,null,null,null,1]
[null,null,null,null,null,"","","","","",null,null,null,null,1]
[null,null,null,null,null,"","","","","",null,null,null,null,1]
[null,null,null,null,null,"","","","","",null,null,null,null,1]
[null,null,null,null,null,"","","","","",null,null,null,null,1]
[null,null,null,null,null,"","","","","",null,null,null,null,1]
[null,null,null,null,null,"","","","","",null,null,null,null,1]
[null,null,null,null,null,"","","","","",null,null,null,null,1]
[null,null,null,null,null,"","","","","",null,null,null,null,1]
[null,null,null,null,null,"","","","","",null,null,null,null,1]
[null,null,null,null,null,"","","","","",null,null,null,null,1]
[null,null,null,null,null,"","","","","",null,null,null,null,1]
[null,null,null,null,null,"","","","","",null,null,null,null,1]
[null,null,null,null,null,"","","","","",null,null,null,null,1]
[null,null,null,null,null,"","","","","",null,null,null,null,1]
[null,null,null,null,null,"","","","","",null,null,null,null,1]
[null,null,null,null,null,"","","","","",null,null,null,null,1]
[null,null,null,null,null,"","","","","",null,null,null,null,1]
[null,null,null,null,null,"","","","","",null,null,null,null,1]
[null,null,null,null,null,"","","","","",null,null,null,null,1]
[null,null,null,null,null,"","","","","",null,null,null,null,1]
[null,null,null,null,null,"","","","","",null,null,null,null,1]
[null,null,null,null,null,"","","","","",null,null,null,null,1]
[null,null,null,null,null,"","","","","",null,null,null,null,1]
[null,null,null,null,null,"","","","","",null,null,null,null,1]
[null,null,null,null,null,{"$f":"IF(AND(ISNUMBER($E204),$B204=1),$E204,\"\")","v":""},{"$f":"IF(AND(ISNUMBER($E204),$B204=2),$E204,\"\")","v":""},{"$f":"IF(AND(ISNUMBER($E204),$B204=3),$E204,\"\")","v":""},{"$f":"IF(AND(ISNUMBER($E204),$B204=4),$E204,\"\")","v":""},{"$f":"IF(OR(ISNUMBER(D204),ISNUMBER(E204)),J203+D204-E204,\"\")","v":""},null,null,null,null,1]
[null,null,null,null,null,"","","","","",null,null,null,null,{"$f":"IF(AND(ISBLANK(A205),ISBLANK(C205),ISBLANK(D205),ISBLANK(E205),ISBLANK(K205),ISBLANK(L205),ISBLANK(M205)),1,\"\")","v":1}]
[null,null,null,null,null,"","","","","",null,null,null,null,1]
[null,null,null,null,null,"","","","","",null,null,null,null,1]
[null,null,null,null,null,"","","","","",null,null,null,null,1]
[null,null,null,null,null,"","","","","",null,null,null,null,1]
[null,null,null,null,null,"","","","","",null,null,null,null,1]
[null,null,null,null,null,"","","","","",null,null,null,null,1]
[null,null,null,null,null,"","","","","",null,null,null,null,1]
[null,null,null,null,null,"","","","","",null,null,null,null,1]
[null,null,null,null,null,"","","","","",null,null,null,null,1]
[null,null,null,null,null,"","","","","",null,null,null,null,1]
[null,null,null,null,null,"","","","","",null,null,null,null,1]
[null,null,null,null,null,"","","","","",null,null,null,null,1]
[null,null,null,null,null,"","","","","",null,null,null,null,1]
[null,null,null,null,null,"","","","","",null,null,null,null,1]
[null,null,null,null,null,"","","","","",null,null,null,null,1]
[null,null,null,null,null,"","","","","",null,null,null,null,1]
[null,null,null,null,null,"","","","","",null,null,null,null,1]
[null,null,null,null,null,"","","","","",null,null,null,null,1]
[null,null,null,null,null,"","","","","",null,null,null,null,1]
[null,null,null,null,null,"","","","","",null,null,null,null,1]
[null,null,null,null,null,"","","","","",null,null,null,null,1]
[null,null,null,null,null,"","","","","",null,null,null,null,1]
[null,null,null,null,null,"","","","","",null,null,null,null,1]
[null,null,null,null,null,"","","","","",null,null,null,null,1]
[null,null,null,null,null,"","","","","",null,null,null,null,1]
[null,null,null,null,null,"","","","","",null,null,null,null,1]
[null,null,null,null,null,"","","","","",null,null,null,null,1]
[null,null,null,null,null,"","","","","",null,null,null,null,1]
[null,null,null,null,null,"","","","","",null,null,null,null,1]
[null,null,null,null,null,"","","","","",null,null,null,null,1]
["合　　　　計",null,null,{"$f":"SUM(D12:D235)","v":0},0,0,0,0,0,{"$f":"+D236-E236","v":0},null,null,null,null,{"$f":"IF(ISNUMBER(J236),\"\",1)","v":""}]
[]
[null,null,"返還額、次年度持越額",null,"（円）",{"$f":"IF(E236=SUM(F236:I236),\"\",\" 支出の計と内訳の計が一致しません。⇒分類欄に未入力がないか確認してください。\")","v":""}]
[null,null,"項　　目","農地維持支払及び資源向上支払\n（施設の長寿命化を除く）"]
[null,null,"　返還額"]
[null,null,"　次年度持越額"]
[null,null,"合　　計",{"$f":"SUM(D240:E241)","v":0},null,{"$f":"IF(J236=D242,\"\",\" ← 残高と合計が一致しません。\")","v":""}]
[]
["　※領収書は、通し番号を記入した上で、必ず保管しておいてください。（領収書の保管の方法は、袋等による保管でも構いません。）"]
["　※高度な農地・水の保全活動（経過措置）については、別々の金銭出納簿で管理してください。"]

{"sheet":"支出費目","index":1,"n_rows":10,"n_cols":3,"rows_kept":10,"cut":false,"hidden":false,"merged":[[0,0,0,2]]}
["支出費目の分類と主な内容"]
["分類番号","支出費目","主な内容"]
[1,"前年度持越","・前年度からの持越金\n"]
[2,"交付金","・農地維持支払交付金・資源向上支払交付金（共同）・資源 向上支払交付金（長寿命化）"]
[3,"利子等","・利子等、構成員による活動資金の立替金"]
[4,"日当","・活動参加者に対して支払った日当"]
[5,"購入・リ－ス費","・資材（砕石、砂利、セメントなど）の購入費、活動に必要な機械（草刈り機など）の購入費、パソコンなどのリ－ス費、車両、機械等の借上げ費、花の種、苗代など"]
[6,"外注費","補修・更新等の工事等（調査、設計、測量、試験等を含む）に係る建設業者等への外注費、事務の外注費など"]
[7,"その他支出","技術指導等のために外部から招く専門家等への謝金、活動に係る旅費、保険料、文具代及び光熱費の費用、アルバイト等への賃金、草刈り機や車の燃料代、役員報酬、お茶代など"]
[8,"返還","返還金"]